Cogmind - Beta 14 @@@ ROGUE MODE // 2024.09.27 @ 22:29:25 Player: ywiktor Result: Destroyed by D-53 Grenadier with Mini Grenade Launcher Performance ------------- Evolutions (0) 0 Regions Visited (4) 800 Robots Destroyed (14) 70 Value Destroyed (381) 381 Prototype IDs (0) 0 Alien Tech Used (0) 0 Bonus (21) 21 TOTAL SCORE: 1272 Bonus ------- Follower Combat Kills 21 Cogmind --------- Core Integrity 0/250 Matter 294/300 Energy 100/100 System Corruption 2% Temperature Cool (1) Movement Flying (40) Location -9/Mines Parts ------- > --- POWER (1) -------- (None) > --- PROPULSION (2) --- Flight Unit > --- UTILITY (2) ------ (None) > --- WEAPON (2) ------- (None) > --- INVENTORY (5) ---- Light Nuclear Core Medium Storage Unit Particle Gun Light Assault Rifle Light Assault Rifle Peak State ------------ > --- POWER ------------ Ion Engine > --- PROPULSION ------- Aluminum Leg Aluminum Leg > --- UTILITY ---------- Large Storage Unit Light Armor Plating > --- WEAPON ----------- Light Assault Rifle Rocket Launcher > --- INVENTORY -------- Light Nuclear Core Aluminum Leg Aluminum Leg Aluminum Leg Flight Unit Flight Unit Heat Sink Medium Storage Unit Sensor Array Signal Interpreter Light Armor Plating EM Pulse Gun Particle Gun Assault Rifle Light Assault Rifle [Rating: 9] Favorites ----------- Power Ion Engine Engine Ion Engine Propulsion Aluminum Leg Leg Aluminum Leg Flight Unit Flight Unit Utility Light Armor Plating Storage Large Storage Unit Protection Light Armor Plating Weapon Light Assault Rifle Ballistic Gun Light Assault Rifle Launcher Rocket Launcher Build | -11 -10 -10 -10 -9 ------- Run | Yrd Mat Min Exi Min Slots Evolved . | . . . . . Power . | . . . . . Propulsion . | . . . . . Utility . | . . . . . Weapon . | . . . . . Parts Attached 21 | 8 8 . . 5 Power 3 | 2 1 . . . Engine 3 | 2 1 . . . Core . | . . . . . Reactor . | . . . . . Propulsion 6 | 2 3 . . 1 Treads . | . . . . . Leg 5 | 2 3 . . . Wheel . | . . . . . Hover . | . . . . . Flight 1 | . . . . 1 Utility 6 | 1 2 . . 3 Device . | . . . . . Storage 4 | 1 1 . . 2 Processor . | . . . . . Hackware . | . . . . . Protection 2 | . 1 . . 1 Artifact . | . . . . . Weapon 6 | 3 2 . . 1 Energy Gun . | . . . . . Energy Cannon . | . . . . . Ballistic Gun 5 | 3 2 . . . Ballistic Cannon . | . . . . . Launcher 1 | . . . . 1 Special Weapon . | . . . . . Impact Weapon . | . . . . . Slashing Weapon . | . . . . . Piercing Weapon . | . . . . . Special Melee Weapon . | . . . . . Unidentified Prototypes . | . . . . . Parts Lost 5 | . . . . 5 Power . | . . . . . Propulsion 2 | . . . . 2 Utility 2 | . . . . 2 Weapon 1 | . . . . 1 Highest Loss Streak 4 | . . . . 4 To Critical Strikes . | . . . . . Average Slot Usage (%) 98 | . 99 100 100 89 Engine 13 | . 14 14 14 12 Leg 27 | . 28 28 28 24 Storage 13 | . 14 14 14 10 Protection 13 | . 13 14 14 12 Ballistic Gun 26 | . 28 28 28 17 Peak Build Rating 9 | 6 8 8 8 9 Average Rating 7 | 3 7 8 8 7 On Entrance 6 | . 6 8 8 8 Naked Turns . | . . . . . Heaviest Build 33 | 13 31 31 31 33 Greatest Support 20 | 20 20 20 20 20 Greatest Overweight (x) 1 | 1 1 1 1 1 Average Overweight (x) . | . . 1 1 . Largest Inventory Capacity 15 | 8 15 15 15 15 Average Capacity 14 | 6 14 15 15 12 Most Carried 15 | 6 15 15 15 15 Average Carried 13 | 4 13 15 15 11 Final Capacity 15 | 8 15 15 15 5 Final Carried 15 | 6 15 15 15 5 Class Distribution -------------------- 100% | Mutant Dominant Class ---------------- Mutant | -10/Materials Mutant | -10/Mines Mutant | -10/Exiles Mutant | -9/Mines Resources | -11 -10 -10 -10 -9 ----------- Run | Yrd Mat Min Exi Min Matter Collected 751 | 197 318 46 . 190 Remotely . | . . . . . Salvage Created 470 | . 434 27 . 9 Parts 35 | . 33 2 . . Haulers Intercepted . | . . . . . Recyclers Shooed 2 | . 2 . . . Parts Field Recycled . | . . . . . Retrieved Matter . | . . . . . Parts Self-Destructed . | . . . . . Prevented . | . . . . . Kills | -11 -10 -10 -10 -9 ------- Run | Yrd Mat Min Exi Min Combat Hostiles Destroyed 18 | . 11 1 . 6 Guns 12 | . 11 1 . . AOE 6 | . . . . 6 Classes Destroyed 5 | . 4 . . 1 Operator 1 | . 1 . . . Watcher 1 | . 1 . . . Swarmer 3 | . 3 . . . Grunt 9 | . 8 1 . . Assembled 6 | . . . . 6 Best Kill Streak 4 | . 3 1 . 4 Combat Bots Only 4 | . 3 1 . 4 Max Kills in Single Turn 2 | . 1 1 . 2 Gunslinging . | . . . . . Exploded 2 | . . . . 2 Melee . | . . . . . Uniques/NPCs Destroyed . | . . . . . Combat | -11 -10 -10 -10 -9 -------- Run | Yrd Mat Min Exi Min Hostile Shots Fired 76 | . 49 . . 27 Missed 22 | . 12 . . 10 Damage Taken 1078 | . 489 . . 589 Core 252 | . 85 . . 167 Absorbed by Shields . | . . . . . Core Remaining (%) 100 | 100 . . . . Volleys Fired 60 | . 50 1 . 9 Largest 2 | . 2 2 . 1 Hottest 40 | . 40 40 . 33 Shots Fired 111 | . 100 2 . 9 Gun 102 | . 100 2 . . Cannon . | . . . . . Launcher 9 | . . . . 9 Special . | . . . . . Kinetic 102 | . 100 2 . . Thermal . | . . . . . Explosive 9 | . . . . 9 Electromagnetic . | . . . . . Robot Hit Streak 7 | . 7 2 . 1 Robot Miss Streak 5 | . 5 . . 2 Penetration Max . | . . . . . Secondary Targets . | . . . . . Shots Hit Robots 56 | . 53 1 . 2 Core Hits 39 | . 26 1 . 12 Critical Kills . | . . . . . Critical Parts Destroyed 2 | . 2 . . . Critical Strikes 2 | . 2 . . . Destroy 2 | . 2 . . . Melee Attacks . | . . . . . Impact . | . . . . . Slashing . | . . . . . Piercing . | . . . . . Sneak Attacks . | . . . . . Combat Hostiles . | . . . . . Follow-up Attacks . | . . . . . Damage Inflicted 921 | . 509 15 . 397 Guns 524 | . 509 15 . . Cannons . | . . . . . Explosions 397 | . . . . 397 Melee . | . . . . . Ramming . | . . . . . Kinetic 524 | . 509 15 . . Thermal . | . . . . . Explosive 397 | . . . . 397 Electromagnetic . | . . . . . Impact . | . . . . . Slashing . | . . . . . Piercing . | . . . . . Highest Corruption 2 | . 2 2 2 2 Average Corruption 2 | . 2 2 2 2 Corruption Purged . | . . . . . Corruption Blocked . | . . . . . Effects 29 | . 6 5 15 3 Message Errors 8 | . 1 1 5 1 Matter Fused 12 | . 1 2 7 2 Heat Flow Errors 4 | . 2 1 1 . Energy Discharges 1 | . . . 1 . Data Loss (minor) 4 | . 2 1 1 . Overload Shots . | . . . . . Overflow Damage 54 | . . . . 54 Projectiles . | . . . . . Explosions 54 | . . . . 54 Melee . | . . . . . Knockbacks . | . . . . . Impact . | . . . . . Kinetic . | . . . . . Secondary . | . . . . . Self-Inflicted Damage 65 | . . . . 65 Shots 3 | . . . . 3 Rammed . | . . . . . Targets Rammed 1 | . . . . 1 Kicked 1 | . . . . 1 Crushed . | . . . . . Highest Temperature 241 | . 196 134 241 19 Average Temperature 34 | . 23 57 120 12 Received Heat Transfer 226 | . 186 . . 40 Siege Activations . | . . . . . Robots Corrupted . | . . . . . Combat Hostiles . | . . . . . Parts Fried . | . . . . . Impact Corruptions . | . . . . . Robots Melted . | . . . . . Combat Hostiles . | . . . . . Parts Melted . | . . . . . Heat Transferred . | . . . . . Parts Sabotaged . | . . . . . Parts Stolen . | . . . . . Parts Stripped . | . . . . . Power Chain Reactions . | . . . . . Alert | -11 -10 -10 -10 -9 ------- Run | Yrd Mat Min Exi Min Peak Influence 242 | . 242 87 . 31 Initial 6 | . . 6 . . Average 75 | . 97 65 . 7 Maximum Alert Level 1 | . 1 . . . Low Security (%) 94 | 100 90 100 . 100 Level 1 5 | . 9 . . . Level 2 . | . . . . . Level 3 . | . . . . . Level 4 . | . . . . . Level 5 . | . . . . . High Security . | . . . . . Max Security . | . . . . . Squads Dispatched 4 | . 4 . . . Investigation 2 | . 2 . . . Extermination . | . . . . . Reinforcement 2 | . 2 . . . Assault . | . . . . . Garrison . | . . . . . Intercept . | . . . . . Searches Triggered . | . . . . . Construction Impeded . | . . . . . Haulers Reinforced . | . . . . . Active Scanning Responses . | . . . . . Cargo Convoy Interrupts . | . . . . . Stealth | -11 -10 -10 -10 -9 --------- Run | Yrd Mat Min Exi Min Distress Signals 3 | . 3 . . . Communications Jammed . | . . . . . Distress Signals . | . . . . . Times Spotted 44 | . 25 4 . 15 Peak Tracking Total 10 | . 5 3 . 10 Tactical Retreats 3 | . 1 . . 2 Traps | -11 -10 -10 -10 -9 ------- Run | Yrd Mat Min Exi Min Traps Triggered 1 | . 1 . . . Indirectly . | . . . . . Trap Hack Attempts . | . . . . . Triggered . | . . . . . Disarmed . | . . . . . Reprogrammed . | . . . . . Reused . | . . . . . Traps Extracted . | . . . . . Installed . | . . . . . Triggered 1 | . . 1 . . Machines | -11 -10 -10 -10 -9 ---------- Run | Yrd Mat Min Exi Min Machines Disabled . | . . . . . Max in Single Turn . | . . . . . Machines Repaired . | . . . . . Machines Dismantled . | . . . . . Machines Sabotaged . | . . . . . Overloaded Fab Kills . | . . . . . Hacking | -11 -10 -10 -10 -9 --------- Run | Yrd Mat Min Exi Min Machines Accessed 6 | . 6 . . . Terminals 6 | . 6 . . . Fabricators . | . . . . . Repair Stations . | . . . . . Recycling Units . | . . . . . Scanalyzers . | . . . . . Garrison Access . | . . . . . Total Hacks 17 | . 17 . . . Successful 4 | . 4 . . . Failed 13 | . 13 . . . Catastrophic 4 | . 4 . . . Database Lockouts . | . . . . . Manual 20 | . 17 . 3 . Terminals 17 | . 17 . . . Fabricators . | . . . . . Repair Stations . | . . . . . Recycling Units . | . . . . . Scanalyzers . | . . . . . Garrison Access . | . . . . . Terminal Hacks 2 | . 2 . . . Robot Analysis 1 | . 1 . . . Branch Access Points 1 | . 1 . . . Fabricator Hacks . | . . . . . Repair Station Hacks . | . . . . . Recycling Unit Hacks . | . . . . . Scanalyzer . | . . . . . Garrison Access Hacks . | . . . . . Unauthorized Hacks 2 | . 2 . . . Terminals 2 | . 2 . . . Botnet 2 | . 2 . . . Fabricators . | . . . . . Repair Stations . | . . . . . Recycling Units . | . . . . . Scanalyzers . | . . . . . Garrison Access . | . . . . . Data Cores Recovered . | . . . . . Used . | . . . . . Hacking Detections 6 | . 6 . . . Full Trace Events 2 | . 2 . . . Feedback Events . | . . . . . Feedback Blocked . | . . . . . Robot Schematics Acquired . | . . . . . Robots Built . | . . . . . Authchips . | . . . . . Time . | . . . . . Total Robot Build Rating . | . . . . . Part Schematics Acquired . | . . . . . Parts Built . | . . . . . Authchips . | . . . . . Time . | . . . . . Total Part Build Rating . | . . . . . Parts Repaired . | . . . . . Time . | . . . . . Parts Recycled . | . . . . . Recycled Matter . | . . . . . Retrieved Matter . | . . . . . Retrieved Components . | . . . . . Parts Scanalyzed . | . . . . . Part Schematics Acquired . | . . . . . Parts Damaged . | . . . . . Bothacking | -11 -10 -10 -10 -9 ------------ Run | Yrd Mat Min Exi Min Used RIF Installer . | . . . . . Robots Hacked . | . . . . . Non-combat . | . . . . . Combat . | . . . . . Robot Hacks Applied . | . . . . . Relay Couplers Released . | . . . . . Fabnet Peak Effective % . | . . . . . Robots Rewired . | . . . . . Allies Hacked . | . . . . . Hacks Repelled . | . . . . . Allies | -11 -10 -10 -10 -9 -------- Run | Yrd Mat Min Exi Min Total Allies 5 | . . 3 . 2 Largest Group 4 | . . 3 2 4 Highest-Rated Group 72 | . . 40 23 72 Highest-Rated Ally 31 | . . 16 15 31 Total Orders 1 | . . 1 . . GUARD 1 | . . 1 . . Ally Attacks 28 | . . 15 . 13 Total Damage 285 | . . 80 . 205 Kills 8 | . . 3 . 5 Allies Corrupted . | . . . . . Allies Melted . | . . . . . Intel | -11 -10 -10 -10 -9 ------- Run | Yrd Mat Min Exi Min Robot Analysis Total 1 | . 1 . . . Derelict Logs Recovered 3 | . . 2 . 1 Drone Launches . | . . . . . Drone Recoveries . | . . . . . Exploration | -11 -10 -10 -10 -9 ------------- Run | Yrd Mat Min Exi Min Turns Passed 2835 | 66 1252 461 785 271 Spaces Moved 1464 | 54 588 240 414 168 Core 25 | 25 . . . . Treads . | . . . . . Legs 1387 | 29 588 240 414 116 Wheels . | . . . . . Hover . | . . . . . Flight 52 | . . . . 52 Fastest Speed 40 | 50 120 190 190 40 Average Speed 174 | 90 176 190 190 136 Slowest Speed 190 | 190 190 190 190 190 Overloaded Moves . | . . . . . Propulsion Burnouts . | . . . . . Robots Hopped . | . . . . . Cave-ins Triggered . | . . . . . Exploration Rate (%) 55 | 5 86 59 90 39 Regions Visited 4 Branch Regions 3 Pre-discovered Areas . | . . . . . Known Exits Taken 1 | . 1 . . . Unknown Exits Taken 3 | 1 . 1 1 . Scrap Searched 2 | . . 1 . 1 Spaces Dug 7 | . . . . 7 Terrain Destroyed 51 | . . . . 51 Melee . | . . . . . Projectile . | . . . . . AOE 51 | . . . . 51 Terrain Rammed . | . . . . . Walls Destroyed . | . . . . . Machines Disabled . | . . . . . Actions | -11 -10 -10 -10 -9 --------- Run | Yrd Mat Min Exi Min Total 1647 | 67 723 246 413 198 Wait 55 | . 45 4 . 6 Move 1460 | 53 587 239 413 168 Hop . | . . . . . Pick Up 31 | 6 18 1 . 6 Fast Attach 8 | 6 1 . . 1 Attach 1 | . . . . 1 Detach 1 | . . . . 1 Swap 12 | 2 7 . . 3 Drop 18 | . 15 1 . 2 Fire 60 | . 50 1 . 9 Melee . | . . . . . Ram . | . . . . . Kick 1 | . . . . 1 Crush . | . . . . . Escape Stasis . | . . . . . Rewire . | . . . . . Trap . | . . . . . Miscellaneous . | . . . . . Route ------- -11/Scrapyard -10/Materials (discovered 4 exits: [*Mat x3] / *Min) -10/Mines (discovered 2 exits: [*Mat] / *Exi) -10/Exiles -9/Mines History --------- Turn | Location | Event 12 | -11/Scrapyard | Discovered new exit (range 14) 67 | -11/Scrapyard | Entered Materials 293 | -10/Materials | Discovered new exit (range 7) 310 | -10/Materials | Build established: Mutant 851 | -10/Materials | Discovered new exit (range 15) 855 | -10/Materials | Identified exit to Mines 964 | -10/Materials | Discovered new exit (range 16) 1319 | -10/Materials | Entered Mines 1319 | -10/Mines | Assisted by bots powering up and referring to "LRC-V3" 1394 | -10/Mines | Learned Materials stockpile data 1458 | -10/Mines | Discovered new exit (range 9) 1555 | -10/Mines | Received a Rocket Launcher from a helpful Derelict 1629 | -10/Mines | Deemed a non-threat by the Exiles lab entrance 1629 | -10/Mines | Discovered new exit (range 5) 1780 | -10/Mines | Entered Exiles 1780 | -10/Exiles | Found Exiles lab abandoned 1780 | -10/Exiles | Accompanied by 2 allies 2548 | -10/Exiles | Discovered new exit (range 11) 2565 | -10/Exiles | Entered Mines 2565 | -9/Mines | Accompanied by 2 allies 2583 | -9/Mines | Met a Derelict bent on vengeance 2646 | -9/Mines | Assembled infested the area 2735 | -9/Mines | Lost 4 allies 2811 | -9/Mines | Core integrity fell below 50% 2814 | -9/Mines | Core integrity fell below 20% 2820 | -9/Mines | Learned 2 Materials zone layouts 2836 | -9/Mines | Destroyed by D-53 Grenadier with Mini Grenade Launcher Last Messages --------------- 02804_ Aluminum Leg destroyed. 02804_ as-70901 destroyed. 02806_ as-97106 destroyed. 02806_ Aluminum Leg destroyed. 02807_ D-53 Grenadier suffers critical hit (Destroy). 02808_ as-77069 destroyed. 02809_ Dropped Ion Engine. 02810_ The unstable cave ceiling collapses. 02812_ Acquired 4 matter. 02813_ Acquired 46 matter. 02814_ The unstable cave ceiling collapses. 02814_ Acquired 8 matter. 02814_ Acquired 20 matter. 02815_ as-08594 destroyed. 02815_ Acquired 30 matter. 02819_ Acquired 23 matter. 02820_ Acquired derelict log, extracted data. Data stored: Materials zone layouts (x2). 02829_ System corrupted: Matter fused (-6). Map ----- +----------------------------------------------------+ | ??????????### # ####?????????????????????????????? | | #????####?# #?????????????????????????????? | | ##### ### !!! #?????????????????????????????? | | + # !!! #?????????????????????????????? | | + ! !! #?????????????????????????????? | | =[# !!!! #?????????????????????????????? | | # != #?????????????????????????????? | | # # #?????????????????????????????? | | # # #######??????####?????????????? ?? | | #??## #????# ?????????????? ?? | | # ##?## ##?# ?????????????? *=??? | | # # #?## ## ????????????? !%???? | | ##?? """%???????????? #????? | | # #???? """???????????? #?????? | | # #???? ""????????????# #?????? | | # #????# ! ?????????????# #?????? | | # ?????#% #?????????????# #?????? | | ## ! ######[ ############??# #?????? | | #### *% = ! ### #??????? | | #?# % =%= #???????? | | ## #?## # = ! ### ##### ## ##???????? | | ### #??### ## ##?#d#???# ## ##????????? | | ???###???????## ##??# ##### # #?????????? | | ??????????????## ######d #?????????? | | ???????????????## ## #????????? | | ????????????????##### @ ## #????????? | | ????????????????????# ### ########## ##????????? | | ????????????????????#???####?????????###?????????? | | ?????????????????????????????????????????????????? | | ?????????????????????????????????????????????????? | | ?????????????????????????????????????????????????? | | ?????????????????????????????????????????????????? | | ?????????????????????????????????????????????????? | | ?????????????????????????????????????????????????? | | ?????????????????????????????????????????????????? | | ?????????????????????????????????????????????????? | | ?????????????????????????????????????????????????? | | ?????????????????????????????????????????????????? | | | | | | | | | | | | | | | | | | | | | | | | | +----------------------------------------------------+ Best States ------------- Heat Dissipation 25 Energy Generation 10 Energy Capacity 250 Matter Stores 300 Matter Capacity 300 Sight Range 16 Terrain Scan Density 10 Armor Coverage 300 Evasion (%) 62 Item Schematics ----------------- None Robot Schematics ------------------ None Fabricated ------------ Nothing Alien Tech Used ----------------- None Achievements -------------- None Challenges ------------ None Game ------ Seed CoolantMomentumCyclogen Manual? 0 Play Time 00:18:48 Cumulative 40.5 hours Start 2024.09.27 @ 22:09:58 End 2024.09.27 @ 22:29:25 Sessions 1 Manual Loads 0 Difficulty Rogue Special Mode None Game No. 44 Rogue 44 Adventurer 0 Explorer 0 Win Type - Total 0 Types 0/0/0/0/0/0/0/0/0 Lore% 24 Gallery% 36 Achievement% 35 Wizard Run 0 Options --------- Layout 1 ASCII 0 Keyboard 0 Movement Numpad Keybinds 0 Fullscreen 1 Font 32/SmallcapsGlow Map View 50x35 Zoom Use 0% Tactical HUD 1 Map Filters NONE Filters NONE Steam 1 RUN: 78fd3690-9aa0-4bd7-b680-fc776ade9941